[Event "Titled Tuesday Blitz January 03 Early 2023"]
[White "Galchenko, Matvey"]
[Black "Oparin, Grigoriy"]
[WhiteFideId "24175480"]
[BlackFideId "24125890"]
[WhiteElo "2438"]
[BlackElo "2667"]
[Result "1/2-1/2"]
[Round "07"]
[TimeControl "180+2"]
[Date "2023.01.03"]
[WhiteClock "0:00:12"]
[BlackClock "0:00:10"]

1. f4 {[%clk 0:03:00]}  c5 {[%clk 0:02:59]} 2. Nf3 {[%clk 0:03:01]}  Nf6 {[%clk 0:02:59]} 3. g3 {[%clk 0:02:57]}  g6 {[%clk 0:02:54]} 4. Bg2 {[%clk 0:02:57]}  Bg7 {[%clk 0:02:55]} 5. O-O {[%clk 0:02:58]}  O-O {[%clk 0:02:53]} 6. d3 {[%clk 0:02:59]}  d5 {[%clk 0:02:53]} 7. Nc3 {[%clk 0:02:59]}  d4 {[%clk 0:02:49]} 8. Na4 {[%clk 0:02:59]}  Qc7 {[%clk 0:02:42]} 9. c4 {[%clk 0:02:59]}  dxc3 {[%clk 0:02:41]} 10. Nxc3 {[%clk 0:02:59]}  Nc6 {[%clk 0:02:39]} 11. e4 {[%clk 0:02:52]}  Rd8 {[%clk 0:02:37]} 12. e5 {[%clk 0:02:37]}  Nd5 {[%clk 0:02:26]} 13. Nxd5 {[%clk 0:02:14]}  Rxd5 {[%clk 0:02:26]} 14. Qb3 {[%clk 0:02:07]}  Rd8 {[%clk 0:02:22]} 15. Ng5 {[%clk 0:02:06]}  e6 {[%clk 0:02:13]} 16. Be3 {[%clk 0:01:50]}  b6 {[%clk 0:02:13]} 17. Rac1 {[%clk 0:01:50]}  Bb7 {[%clk 0:02:09]} 18. Qc3 {[%clk 0:01:12]}  Rac8 {[%clk 0:02:05]} 19. Rfd1 {[%clk 0:01:09]}  Nb4 {[%clk 0:01:58]} 20. Qb3 {[%clk 0:00:57]}  Bxg2 {[%clk 0:01:47]} 21. Kxg2 {[%clk 0:00:58]}  Qb7+ {[%clk 0:01:48]} 22. Nf3 {[%clk 0:00:55]}  Rd7 {[%clk 0:01:42]} 23. a3 {[%clk 0:00:54]}  Nd5 {[%clk 0:01:37]} 24. Bf2 {[%clk 0:00:54]}  Rdc7 {[%clk 0:01:14]} 25. Qc4 {[%clk 0:00:45]}  Ne7 {[%clk 0:01:12]} 26. Qe4 {[%clk 0:00:37]}  Qb8 {[%clk 0:01:02]} 27. Rc2 {[%clk 0:00:35]}  Rd8 {[%clk 0:01:00]} 28. d4 {[%clk 0:00:32]}  c4 {[%clk 0:01:00]} 29. Rdc1 {[%clk 0:00:23]}  b5 {[%clk 0:01:00]} 30. Be1 {[%clk 0:00:22]}  Rcd7 {[%clk 0:00:52]} 31. Ba5 {[%clk 0:00:22]}  Re8 {[%clk 0:00:48]} 32. Nd2 {[%clk 0:00:17]}  Nf5 {[%clk 0:00:40]} 33. Nf3 {[%clk 0:00:16]}  Qc8 {[%clk 0:00:35]} 34. g4 {[%clk 0:00:13]}  Ne7 {[%clk 0:00:32]} 35. Nd2 {[%clk 0:00:12]}  Qa6 {[%clk 0:00:27]} 36. Bb4 {[%clk 0:00:13]}  Nc6 {[%clk 0:00:25]} 37. Bc5 {[%clk 0:00:13]}  Red8 {[%clk 0:00:23]} 38. Nf3 {[%clk 0:00:12]}  Rd5 {[%clk 0:00:21]} 39. f5 {[%clk 0:00:12]}  exf5 {[%clk 0:00:21]} 40. gxf5 {[%clk 0:00:12]}  Nxe5 {[%clk 0:00:21]} 41. dxe5 {[%clk 0:00:09]}  Rxc5 {[%clk 0:00:22]} 42. e6 {[%clk 0:00:08]}  Rxf5 {[%clk 0:00:19]} 43. e7 {[%clk 0:00:08]}  Re8 {[%clk 0:00:19]} 44. Rd1 {[%clk 0:00:08]}  Qc8 {[%clk 0:00:12]} 45. Rcd2 {[%clk 0:00:07]}  Bf6 {[%clk 0:00:08]} 46. Rd8 {[%clk 0:00:04]}  Bxe7 {[%clk 0:00:02]} 47. Rxc8 {[%clk 0:00:02]}  Rxc8 {[%clk 0:00:03]} 48. Qxe7 {[%clk 0:00:03]}  c3 {[%clk 0:00:03]} 49. bxc3 {[%clk 0:00:03]}  Kg7 {[%clk 0:00:02]} 50. Qe4 {[%clk 0:00:03]}  Rc4 {[%clk 0:00:02]} 51. Qe3 {[%clk 0:00:03]}  h5 {[%clk 0:00:02]} 52. Rd4 {[%clk 0:00:04]}  Rc6 {[%clk 0:00:02]} 53. Qd3 {[%clk 0:00:04]}  Re6 {[%clk 0:00:02]} 54. Rd5 {[%clk 0:00:04]}  Rf4 {[%clk 0:00:02]} 55. Rd4 {[%clk 0:00:05]}  Rf5 {[%clk 0:00:03]} 56. Nh4 {[%clk 0:00:05]}  Rg5+ {[%clk 0:00:03]} 57. Kf2 {[%clk 0:00:05]}  Rf6+ {[%clk 0:00:03]} 58. Ke2 {[%clk 0:00:05]}  Re5+ {[%clk 0:00:04]} 59. Re4 {[%clk 0:00:05]}  Rxe4+ {[%clk 0:00:03]} 60. Qxe4 {[%clk 0:00:06]}  Re6 {[%clk 0:00:04]} 61. Ke3 {[%clk 0:00:06]}  Kf6 {[%clk 0:00:03]} 62. Nf3 {[%clk 0:00:05]}  g5 {[%clk 0:00:03]} 63. Qxe6+ {[%clk 0:00:05]}  Kxe6 {[%clk 0:00:04]} 64. Ke4 {[%clk 0:00:06]}  f6 {[%clk 0:00:04]} 65. Nd4+ {[%clk 0:00:06]}  Kd6 {[%clk 0:00:04]} 66. Nxb5+ {[%clk 0:00:07]}  Kc5 {[%clk 0:00:05]} 67. a4 {[%clk 0:00:06]}  a6 {[%clk 0:00:05]} 68. Nc7 {[%clk 0:00:06]}  a5 {[%clk 0:00:05]} 69. Nd5 {[%clk 0:00:06]}  f5+ {[%clk 0:00:06]} 70. Kxf5 {[%clk 0:00:06]}  Kxd5 {[%clk 0:00:06]} 71. Kxg5 {[%clk 0:00:07]}  Kc4 {[%clk 0:00:07]} 72. Kxh5 {[%clk 0:00:07]}  Kb3 {[%clk 0:00:07]} 73. Kg5 {[%clk 0:00:08]}  Kxa4 {[%clk 0:00:08]} 74. h4 {[%clk 0:00:09]}  Kb3 {[%clk 0:00:08]} 75. h5 {[%clk 0:00:09]}  a4 {[%clk 0:00:09]} 76. h6 {[%clk 0:00:10]}  a3 {[%clk 0:00:10]} 77. h7 {[%clk 0:00:11]}  a2 {[%clk 0:00:11]} 78. h8=Q {[%clk 0:00:11]}  a1=Q {[%clk 0:00:12]} 79. Qb8+ {[%clk 0:00:11]}  Kc2 {[%clk 0:00:12]} 80. Qh2+ {[%clk 0:00:11]}  Kb3 {[%clk 0:00:11]} 81. Qb8+ {[%clk 0:00:12]}  Kc2 {[%clk 0:00:12]} 82. c4 {[%clk 0:00:12]}  Qg1+ {[%clk 0:00:11]} 83. Kf5 {[%clk 0:00:12]}  Qc5+ {[%clk 0:00:09]} 84. Qe5 {[%clk 0:00:11]}  Qxc4 {[%clk 0:00:09]} 85. Qe4+ {[%clk 0:00:11]}  Qxe4+ {[%clk 0:00:10]} 86. Kxe4 {[%clk 0:00:12]} 1/2-1/2


[Site "https://www.chess.com"]

[Event "Titled Tuesday Blitz January 03 Early 2023"]
[White "Timofeev, Artyom"]
[Black "Borges Feria, Yasel"]
[WhiteFideId "4140419"]
[BlackFideId "3504921"]
[WhiteElo "2567"]
[BlackElo "2439"]
[Result "1-0"]
[Round "07"]
[TimeControl "180+2"]
[Date "2023.01.03"]
[WhiteClock "0:02:47"]
[BlackClock "0:02:36"]

1. d4 {[%clk 0:03:00]}  Nf6 {[%clk 0:02:59]} 2. Nc3 {[%clk 0:03:00]}  d5 {[%clk 0:02:55]} 3. Bf4 {[%clk 0:02:59]}  c6 {[%clk 0:02:53]} 4. e3 {[%clk 0:02:59]}  g6 {[%clk 0:02:52]} 5. h4 {[%clk 0:02:58]}  Bg7 {[%clk 0:02:48]} 6. Be2 {[%clk 0:02:58]}  h5 {[%clk 0:02:47]} 7. Nf3 {[%clk 0:02:58]}  Bg4 {[%clk 0:02:47]} 8. Ne5 {[%clk 0:02:57]}  Bxe2 {[%clk 0:02:48]} 9. Qxe2 {[%clk 0:02:57]}  Nbd7 {[%clk 0:02:48]} 10. O-O-O {[%clk 0:02:57]}  e6 {[%clk 0:02:39]} 11. Kb1 {[%clk 0:02:55]}  Qe7 {[%clk 0:02:38]} 12. f3 {[%clk 0:02:52]}  O-O-O {[%clk 0:02:36]} 13. Nxc6 {[%clk 0:02:47]} 1-0


[Site "https://www.chess.com"]

[Event "Titled Tuesday Blitz January 03 Early 2023"]
[White "Bryakin, Mikhail"]
[Black "Lenderman, Aleksandr"]
[WhiteFideId "4165314"]
[BlackFideId "2021285"]
[WhiteElo "2455"]
[BlackElo "2572"]
[Result "0-1"]
[Round "07"]
[TimeControl "180+2"]
[Date "2023.01.03"]
[WhiteClock "0:00:02"]
[BlackClock "0:00:20"]

1. Nf3 {[%clk 0:02:56]}  e6 {[%clk 0:03:00]} 2. c4 {[%clk 0:02:56]}  b6 {[%clk 0:02:59]} 3. g3 {[%clk 0:02:55]}  Bb7 {[%clk 0:03:00]} 4. Bg2 {[%clk 0:02:56]}  Nf6 {[%clk 0:02:48]} 5. O-O {[%clk 0:02:56]}  c5 {[%clk 0:02:47]} 6. b3 {[%clk 0:02:51]}  Be7 {[%clk 0:02:47]} 7. Bb2 {[%clk 0:02:52]}  O-O {[%clk 0:02:47]} 8. d4 {[%clk 0:02:48]}  cxd4 {[%clk 0:02:47]} 9. Nxd4 {[%clk 0:02:29]}  Bxg2 {[%clk 0:02:45]} 10. Kxg2 {[%clk 0:02:30]}  d6 {[%clk 0:02:44]} 11. Nd2 {[%clk 0:02:27]}  Qc7 {[%clk 0:02:40]} 12. Rc1 {[%clk 0:02:25]}  Nbd7 {[%clk 0:02:40]} 13. Qc2 {[%clk 0:02:19]}  Qb7+ {[%clk 0:02:39]} 14. N4f3 {[%clk 0:02:16]}  Rac8 {[%clk 0:02:39]} 15. Qb1 {[%clk 0:02:08]}  d5 {[%clk 0:02:38]} 16. cxd5 {[%clk 0:02:06]}  Nxd5 {[%clk 0:02:39]} 17. Rxc8 {[%clk 0:02:04]}  Rxc8 {[%clk 0:02:37]} 18. Rc1 {[%clk 0:02:05]}  Rxc1 {[%clk 0:02:37]} 19. Qxc1 {[%clk 0:02:06]}  N5f6 {[%clk 0:02:35]} 20. Bxf6 {[%clk 0:02:00]}  Bxf6 {[%clk 0:02:34]} 21. Qc2 {[%clk 0:02:00]}  h6 {[%clk 0:02:28]} 22. h3 {[%clk 0:01:59]}  Nc5 {[%clk 0:02:21]} 23. Kg1 {[%clk 0:01:54]}  a5 {[%clk 0:02:18]} 24. Nc4 {[%clk 0:01:50]}  Qc6 {[%clk 0:02:06]} 25. Nfd2 {[%clk 0:01:41]}  g6 {[%clk 0:01:57]} 26. h4 {[%clk 0:01:29]}  h5 {[%clk 0:01:56]} 27. Ne3 {[%clk 0:01:28]}  Kg7 {[%clk 0:01:49]} 28. Nec4 {[%clk 0:01:27]}  a4 {[%clk 0:01:37]} 29. bxa4 {[%clk 0:01:07]}  Nxa4 {[%clk 0:01:38]} 30. Qe4 {[%clk 0:01:07]}  Qd5 {[%clk 0:01:32]} 31. Kf1 {[%clk 0:00:51]}  b5 {[%clk 0:01:21]} 32. Qxd5 {[%clk 0:00:46]}  exd5 {[%clk 0:01:22]} 33. Na3 {[%clk 0:00:38]}  Nc3 {[%clk 0:01:21]} 34. Ndb1 {[%clk 0:00:38]}  d4 {[%clk 0:01:12]} 35. Nd2 {[%clk 0:00:25]}  b4 {[%clk 0:01:08]} 36. Nc2 {[%clk 0:00:20]}  Nxa2 {[%clk 0:01:08]} 37. Nb3 {[%clk 0:00:21]}  Kf8 {[%clk 0:01:03]} 38. Ke1 {[%clk 0:00:20]}  Ke7 {[%clk 0:01:02]} 39. Ncxd4 {[%clk 0:00:18]}  Bxd4 {[%clk 0:01:01]} 40. Nxd4 {[%clk 0:00:17]}  Kd6 {[%clk 0:01:01]} 41. Kd2 {[%clk 0:00:15]}  Kd5 {[%clk 0:00:57]} 42. Nf3 {[%clk 0:00:14]}  Nc3 {[%clk 0:00:54]} 43. Ne1 {[%clk 0:00:09]}  Ne4+ {[%clk 0:00:51]} 44. Ke3 {[%clk 0:00:10]}  b3 {[%clk 0:00:38]} 45. Nd3 {[%clk 0:00:10]}  f5 {[%clk 0:00:33]} 46. Nb2 {[%clk 0:00:10]}  Kc5 {[%clk 0:00:28]} 47. Kf3 {[%clk 0:00:03]}  Kd4 {[%clk 0:00:28]} 48. e3+ {[%clk 0:00:02]}  Kc3 {[%clk 0:00:28]} 49. Na4+ {[%clk 0:00:03]}  Kc2 {[%clk 0:00:29]} 50. Kf4 {[%clk 0:00:03]}  Nc3 {[%clk 0:00:28]} 51. Nb6 {[%clk 0:00:02]}  Nd5+ {[%clk 0:00:20]} 52. Ke5 {[%clk 0:00:02]}  Nxb6 {[%clk 0:00:20]} 0-1


[Site "https://www.chess.com"]

[Event "Titled Tuesday Blitz January 03 Early 2023"]
[White "Molina, Roberto Junio Brito"]
[Black "Nouri, Alekhine"]
[WhiteFideId "2109450"]
[BlackFideId "5216184"]
[WhiteElo "2403"]
[BlackElo "2257"]
[Result "1-0"]
[Round "07"]
[TimeControl "180+2"]
[Date "2023.01.03"]
[WhiteClock "0:01:18"]
[BlackClock "0:00:32"]

1. d4 {[%clk 0:03:00]}  Nf6 {[%clk 0:02:59]} 2. c4 {[%clk 0:03:00]}  c5 {[%clk 0:02:59]} 3. d5 {[%clk 0:02:59]}  b5 {[%clk 0:02:58]} 4. cxb5 {[%clk 0:03:00]}  a6 {[%clk 0:02:58]} 5. b6 {[%clk 0:03:01]}  Qxb6 {[%clk 0:02:57]} 6. Nc3 {[%clk 0:03:01]}  d6 {[%clk 0:02:57]} 7. e4 {[%clk 0:03:01]}  g6 {[%clk 0:02:58]} 8. Nf3 {[%clk 0:03:00]}  Bg7 {[%clk 0:02:58]} 9. Be2 {[%clk 0:03:00]}  O-O {[%clk 0:02:57]} 10. O-O {[%clk 0:03:01]}  Bg4 {[%clk 0:02:57]} 11. Nd2 {[%clk 0:03:00]}  Bxe2 {[%clk 0:02:57]} 12. Qxe2 {[%clk 0:03:01]}  Nfd7 {[%clk 0:02:58]} 13. Nc4 {[%clk 0:03:00]}  Qc7 {[%clk 0:02:58]} 14. Bf4 {[%clk 0:02:59]}  Nb6 {[%clk 0:02:57]} 15. Ne3 {[%clk 0:02:57]}  N8d7 {[%clk 0:02:56]} 16. Rac1 {[%clk 0:02:56]}  Rfb8 {[%clk 0:02:52]} 17. b3 {[%clk 0:02:55]}  a5 {[%clk 0:02:51]} 18. Nb5 {[%clk 0:02:54]}  Qb7 {[%clk 0:02:49]} 19. a4 {[%clk 0:02:54]}  Nc8 {[%clk 0:02:48]} 20. Nc4 {[%clk 0:02:52]}  Ncb6 {[%clk 0:02:40]} 21. h4 {[%clk 0:02:34]}  h5 {[%clk 0:02:35]} 22. Be3 {[%clk 0:02:23]}  Nxc4 {[%clk 0:02:34]} 23. bxc4 {[%clk 0:02:23]}  Ne5 {[%clk 0:02:35]} 24. g3 {[%clk 0:02:17]}  Qd7 {[%clk 0:02:35]} 25. Kg2 {[%clk 0:02:17]}  f5 {[%clk 0:02:30]} 26. Bf4 {[%clk 0:02:15]}  Rf8 {[%clk 0:02:18]} 27. Bxe5 {[%clk 0:02:14]}  Bxe5 {[%clk 0:02:14]} 28. f4 {[%clk 0:02:13]}  Bg7 {[%clk 0:02:08]} 29. e5 {[%clk 0:02:12]}  dxe5 {[%clk 0:01:59]} 30. fxe5 {[%clk 0:02:13]}  Bh6 {[%clk 0:01:58]} 31. Rcd1 {[%clk 0:02:09]}  f4 {[%clk 0:01:58]} 32. e6 {[%clk 0:02:07]}  Qe8 {[%clk 0:01:51]} 33. g4 {[%clk 0:02:05]}  Rb8 {[%clk 0:01:32]} 34. g5 {[%clk 0:02:01]}  Bg7 {[%clk 0:01:32]} 35. Qe4 {[%clk 0:01:59]}  Rxb5 {[%clk 0:01:23]} 36. axb5 {[%clk 0:01:54]}  a4 {[%clk 0:01:11]} 37. Rd3 {[%clk 0:01:45]}  Qa8 {[%clk 0:00:50]} 38. Rff3 {[%clk 0:01:45]}  Rf5 {[%clk 0:00:48]} 39. Ra3 {[%clk 0:01:35]}  Qb8 {[%clk 0:00:41]} 40. Rxa4 {[%clk 0:01:32]}  Bd4 {[%clk 0:00:40]} 41. Ra6 {[%clk 0:01:26]}  Be3 {[%clk 0:00:38]} 42. d6 {[%clk 0:01:24]}  exd6 {[%clk 0:00:32]} 43. Ra8 {[%clk 0:01:18]} 1-0


[Site "https://www.chess.com"]

[Event "Titled Tuesday Blitz January 03 Early 2023"]
[White "Csonka, Balazs"]
[Black "Bortnyk, Olexandr"]
[WhiteFideId "742910"]
[BlackFideId "14120828"]
[WhiteElo "2496"]
[BlackElo "2605"]
[Result "0-1"]
[Round "07"]
[TimeControl "180+2"]
[Date "2023.01.03"]
[WhiteClock "0:00:25"]
[BlackClock "0:01:49"]

1. d4 {[%clk 0:03:00]}  d6 {[%clk 0:03:00]} 2. Nf3 {[%clk 0:02:57]}  Nf6 {[%clk 0:03:00]} 3. c4 {[%clk 0:02:52]}  g6 {[%clk 0:02:59]} 4. Nc3 {[%clk 0:02:52]}  Bf5 {[%clk 0:02:59]} 5. Ng5 {[%clk 0:02:27]}  Bg7 {[%clk 0:02:57]} 6. e4 {[%clk 0:02:27]}  Bd7 {[%clk 0:02:57]} 7. Be2 {[%clk 0:02:26]}  O-O {[%clk 0:02:57]} 8. O-O {[%clk 0:02:23]}  e5 {[%clk 0:02:57]} 9. Nf3 {[%clk 0:02:13]}  exd4 {[%clk 0:02:53]} 10. Nxd4 {[%clk 0:02:14]}  Nc6 {[%clk 0:02:52]} 11. Be3 {[%clk 0:02:12]}  Nxd4 {[%clk 0:02:47]} 12. Bxd4 {[%clk 0:02:12]}  Bc6 {[%clk 0:02:48]} 13. f3 {[%clk 0:02:11]}  Nd7 {[%clk 0:02:48]} 14. Bxg7 {[%clk 0:01:58]}  Kxg7 {[%clk 0:02:49]} 15. b4 {[%clk 0:01:58]}  b6 {[%clk 0:02:42]} 16. Nd5 {[%clk 0:01:53]}  a5 {[%clk 0:02:38]} 17. Qd4+ {[%clk 0:01:46]}  f6 {[%clk 0:02:35]} 18. a3 {[%clk 0:01:39]}  Ra7 {[%clk 0:02:21]} 19. f4 {[%clk 0:01:29]}  Re8 {[%clk 0:02:15]} 20. Bd3 {[%clk 0:01:16]}  Ba8 {[%clk 0:02:11]} 21. Rae1 {[%clk 0:00:58]}  axb4 {[%clk 0:02:07]} 22. axb4 {[%clk 0:00:58]}  c5 {[%clk 0:02:07]} 23. bxc5 {[%clk 0:00:38]}  bxc5 {[%clk 0:01:52]} 24. Qc3 {[%clk 0:00:30]}  Qa5 {[%clk 0:01:51]} 25. Qxa5 {[%clk 0:00:25]}  Rxa5 {[%clk 0:01:52]} 26. Ra1 {[%clk 0:00:25]}  Rxa1 {[%clk 0:01:49]} 0-1


[Site "https://www.chess.com"]

[Event "Titled Tuesday Blitz January 03 Early 2023"]
[White "Narayanan.S.L"]
[Black "Averjanov, Alexey"]
[WhiteFideId "5058422"]
[BlackFideId "14109867"]
[WhiteElo "2660"]
[BlackElo "2399"]
[Result "1-0"]
[Round "07"]
[TimeControl "180+2"]
[Date "2023.01.03"]
[WhiteClock "0:02:43"]
[BlackClock "0:00:19"]

1. e4 {[%clk 0:03:00]}  c6 {[%clk 0:02:59]} 2. d4 {[%clk 0:02:59]}  d5 {[%clk 0:03:00]} 3. exd5 {[%clk 0:02:59]}  cxd5 {[%clk 0:03:00]} 4. Bd3 {[%clk 0:03:00]}  Nc6 {[%clk 0:03:00]} 5. c3 {[%clk 0:03:00]}  Nf6 {[%clk 0:03:00]} 6. Bf4 {[%clk 0:03:00]}  Bg4 {[%clk 0:03:00]} 7. Qb3 {[%clk 0:03:00]}  Qc8 {[%clk 0:03:00]} 8. Nd2 {[%clk 0:03:00]}  Bh5 {[%clk 0:02:59]} 9. Ngf3 {[%clk 0:03:00]}  Bg6 {[%clk 0:02:59]} 10. Bxg6 {[%clk 0:02:59]}  hxg6 {[%clk 0:03:00]} 11. O-O {[%clk 0:02:59]}  e6 {[%clk 0:03:01]} 12. Rfe1 {[%clk 0:02:59]}  Be7 {[%clk 0:03:00]} 13. h4 {[%clk 0:02:59]}  O-O {[%clk 0:02:59]} 14. Ng5 {[%clk 0:02:58]}  a6 {[%clk 0:02:53]} 15. Ndf3 {[%clk 0:02:57]}  b5 {[%clk 0:02:49]} 16. a3 {[%clk 0:02:56]}  Nh7 {[%clk 0:02:47]} 17. Nxh7 {[%clk 0:02:54]}  Kxh7 {[%clk 0:02:47]} 18. Qc2 {[%clk 0:02:53]}  Kg8 {[%clk 0:02:45]} 19. Bg5 {[%clk 0:02:53]}  Qc7 {[%clk 0:02:43]} 20. Bxe7 {[%clk 0:02:52]}  Qxe7 {[%clk 0:02:37]} 21. Ng5 {[%clk 0:02:52]}  a5 {[%clk 0:02:35]} 22. f4 {[%clk 0:02:51]}  b4 {[%clk 0:02:33]} 23. h5 {[%clk 0:02:50]}  Qf6 {[%clk 0:02:22]} 24. hxg6 {[%clk 0:02:50]}  fxg6 {[%clk 0:02:09]} 25. Nxe6 {[%clk 0:02:49]}  Rf7 {[%clk 0:02:06]} 26. Ng5 {[%clk 0:02:48]}  Re7 {[%clk 0:02:01]} 27. Rxe7 {[%clk 0:02:46]}  Nxe7 {[%clk 0:02:02]} 28. g3 {[%clk 0:02:43]}  bxc3 {[%clk 0:02:01]} 29. bxc3 {[%clk 0:02:42]}  Rc8 {[%clk 0:02:01]} 30. Re1 {[%clk 0:02:40]}  Nf5 {[%clk 0:02:00]} 31. Qa4 {[%clk 0:02:38]}  Nxg3 {[%clk 0:01:34]} 32. Re8+ {[%clk 0:02:36]}  Rxe8 {[%clk 0:01:34]} 33. Qxe8+ {[%clk 0:02:36]}  Qf8 {[%clk 0:01:35]} 34. Qxg6 {[%clk 0:02:32]}  Ne2+ {[%clk 0:00:32]} 35. Kh1 {[%clk 0:02:31]}  Qf6 {[%clk 0:00:08]} 36. Qe8+ {[%clk 0:02:31]}  Qf8 {[%clk 0:00:08]} 37. Qxe2 {[%clk 0:02:31]}  Qxf4 {[%clk 0:00:02]} 38. Qe8+ {[%clk 0:02:31]}  Qf8 {[%clk 0:00:02]} 39. Qxf8+ {[%clk 0:02:31]}  Kxf8 {[%clk 0:00:03]} 40. Kg2 {[%clk 0:02:32]}  Ke7 {[%clk 0:00:03]} 41. Nh3 {[%clk 0:02:31]}  Kd6 {[%clk 0:00:04]} 42. Nf4 {[%clk 0:02:32]}  Kc6 {[%clk 0:00:04]} 43. a4 {[%clk 0:02:32]}  Kd6 {[%clk 0:00:04]} 44. Nxd5 {[%clk 0:02:31]}  g5 {[%clk 0:00:05]} 45. Kf3 {[%clk 0:02:32]}  Kxd5 {[%clk 0:00:05]} 46. Kg4 {[%clk 0:02:32]}  Kc4 {[%clk 0:00:06]} 47. Kxg5 {[%clk 0:02:33]}  Kxc3 {[%clk 0:00:06]} 48. d5 {[%clk 0:02:33]}  Kb4 {[%clk 0:00:07]} 49. d6 {[%clk 0:02:34]}  Kxa4 {[%clk 0:00:08]} 50. d7 {[%clk 0:02:35]}  Kb3 {[%clk 0:00:08]} 51. d8=Q {[%clk 0:02:36]}  a4 {[%clk 0:00:08]} 52. Qb6+ {[%clk 0:02:36]}  Ka2 {[%clk 0:00:08]} 53. Qb4 {[%clk 0:02:36]}  a3 {[%clk 0:00:08]} 54. Kf4 {[%clk 0:02:36]}  Ka1 {[%clk 0:00:09]} 55. Qxa3+ {[%clk 0:02:36]}  Kb1 {[%clk 0:00:10]} 56. Qb3+ {[%clk 0:02:37]}  Ka1 {[%clk 0:00:10]} 57. Qc3+ {[%clk 0:02:37]}  Kb1 {[%clk 0:00:10]} 58. Qd2 {[%clk 0:02:37]}  Ka1 {[%clk 0:00:11]} 59. Ke3 {[%clk 0:02:38]}  Kb1 {[%clk 0:00:12]} 60. Kd4 {[%clk 0:02:39]}  Ka1 {[%clk 0:00:12]} 61. Kc5 {[%clk 0:02:40]}  Kb1 {[%clk 0:00:13]} 62. Kb4 {[%clk 0:02:41]}  Ka1 {[%clk 0:00:14]} 63. Kb3 {[%clk 0:02:41]}  Kb1 {[%clk 0:00:15]} 64. Qd7 {[%clk 0:02:42]}  Ka1 {[%clk 0:00:16]} 65. Qd8 {[%clk 0:02:43]}  Kb1 {[%clk 0:00:17]} 66. Qd7 {[%clk 0:02:43]}  Ka1 {[%clk 0:00:18]} 67. Qd4+ {[%clk 0:02:43]}  Kb1 {[%clk 0:00:19]} 68. Qb2# {[%clk 0:02:43]} 1-0


[Site "https://www.chess.com"]

[Event "Titled Tuesday Blitz January 03 Early 2023"]
[White "Volkov, Maksim"]
[Black "Sethuraman, S.P."]
[WhiteFideId "54123070"]
[BlackFideId "5021596"]
[WhiteElo "2258"]
[BlackElo "2626"]
[Result "1-0"]
[Round "07"]
[TimeControl "180+2"]
[Date "2023.01.03"]
[WhiteClock "0:00:55"]
[BlackClock "0:00:47"]

1. d4 {[%clk 0:03:00]}  f5 {[%clk 0:02:58]} 2. c4 {[%clk 0:02:59]}  Nf6 {[%clk 0:02:58]} 3. Nf3 {[%clk 0:03:00]}  g6 {[%clk 0:02:58]} 4. e3 {[%clk 0:02:58]}  Bg7 {[%clk 0:02:58]} 5. b4 {[%clk 0:02:59]}  O-O {[%clk 0:02:58]} 6. Bb2 {[%clk 0:02:59]}  b6 {[%clk 0:02:59]} 7. Be2 {[%clk 0:02:58]}  Bb7 {[%clk 0:02:59]} 8. O-O {[%clk 0:02:58]}  e6 {[%clk 0:03:00]} 9. Qb3 {[%clk 0:02:56]}  Qe7 {[%clk 0:02:59]} 10. Nc3 {[%clk 0:02:52]}  d6 {[%clk 0:02:58]} 11. Rfd1 {[%clk 0:02:47]}  h6 {[%clk 0:02:58]} 12. Rac1 {[%clk 0:02:42]}  Nbd7 {[%clk 0:02:56]} 13. c5 {[%clk 0:02:36]}  dxc5 {[%clk 0:02:35]} 14. bxc5 {[%clk 0:02:34]}  Rab8 {[%clk 0:02:16]} 15. c6 {[%clk 0:02:17]}  Bxc6 {[%clk 0:02:15]} 16. Ba3 {[%clk 0:02:17]}  Qe8 {[%clk 0:02:10]} 17. Bxf8 {[%clk 0:02:15]}  Bxf8 {[%clk 0:02:11]} 18. Nb5 {[%clk 0:02:11]}  Bd5 {[%clk 0:02:06]} 19. Qa4 {[%clk 0:02:04]}  c6 {[%clk 0:02:04]} 20. Nc7 {[%clk 0:02:03]}  Qd8 {[%clk 0:01:59]} 21. Nxd5 {[%clk 0:02:01]}  cxd5 {[%clk 0:01:56]} 22. Qxa7 {[%clk 0:01:50]}  Ra8 {[%clk 0:01:50]} 23. Qb7 {[%clk 0:01:50]}  Rxa2 {[%clk 0:01:49]} 24. Rc8 {[%clk 0:01:47]}  Qe7 {[%clk 0:01:49]} 25. Bb5 {[%clk 0:01:47]}  Rb2 {[%clk 0:01:28]} 26. Bc6 {[%clk 0:01:33]}  Qd6 {[%clk 0:01:05]} 27. Ne5 {[%clk 0:01:13]}  Nxe5 {[%clk 0:01:01]} 28. dxe5 {[%clk 0:01:13]}  Qb4 {[%clk 0:00:54]} 29. exf6 {[%clk 0:00:56]}  Rb1 {[%clk 0:00:47]} 30. Qg7# {[%clk 0:00:55]} 1-0


[Site "https://www.chess.com"]